Workbook

Sheet Approved Div splits
A1: Division | B1: Team Name | C1: Seed Time | D1: Declared Time | E1: Break Out | F1: Handicap? | G1: RR | H1: Format | I1: Number of races | AB1: =IF(#REF!="","",#REF!) ->  | AC1: =IF(B6="","",B6) -> Belconnen Dodgeda Bullets | AE1: =INDEX(AB1:AB101,MATCH(TeamNameCell,'Approved Div splits'!AC1:AC101,0)) ->  | AJ1: =IF(B6="","",'[1]Race Meeting Information'!$B$3 &" - " & B6) -> CAF1031 - Belconnen Dodgeda Bullets
B2: Norwest Thunderdogs 1 | C2: 16.345 | E2: - | H2: Regular | AB2: =IF(#REF!="","",BZ3) ->  | AC2: =IF(B3="","",B3) -> Canberra X Factor | AJ2: =IF(B3="","",'[1]Race Meeting Information'!$B$3 &" - " & B3) -> CAF1031 - Canberra X Factor | BZ2: Team 2 | CP2: 6 | CQ2: T-Keilor Sunrises | CR2: Left
A3: Div 1 | B3: Canberra X Factor | C3: 17.487 | E3: - | F3: Non-Handicap | G3: 3 | H3: Best of 5 | I3: 9 | AB3: =IF(#REF!="","",BZ4) ->  | AC3: =IF(B4="","",B4) -> Norwest Thunderdogs 2 | AJ3: =IF('Approved Div splits'!B4="","",'[1]Race Meeting Information'!$B$3 &" - " & 'Approved Div splits'!B4) -> CAF1031 - Norwest Thunderdogs 2 | BZ3: Team 3
B4: Norwest Thunderdogs 2 | D4: 17.5 | E4: - | AB4: =IF(#REF!="","",BZ5) ->  | AC4: =IF(B5="","",B5) -> Norwest Thunderdogs 4 | AJ4: =IF('Approved Div splits'!B5="","",'[1]Race Meeting Information'!$B$3 &" - " & 'Approved Div splits'!B5) -> CAF1031 - Norwest Thunderdogs 4 | BZ4: Team 4
B5: Norwest Thunderdogs 4 | C5: 18.124 | E5: =ROUNDDOWN(C5,1)-0.5 -> 17.6 | AB5: =IF(#REF!="","",BZ7) ->  | AC5: =IF(B7="","",B7) -> Norwest Thunderdogs 5 | AJ5: =IF('Approved Div splits'!B7="","",'[1]Race Meeting Information'!$B$3 &" - " & 'Approved Div splits'!B7) -> CAF1031 - Norwest Thunderdogs 5 | BZ5: Team 5
A6: Div 2 | B6: Belconnen Dodgeda Bullets | D6: 19.2 | E6: =ROUNDDOWN(D6,1)-0.5 -> 18.7 | H6: Regular
B7: Norwest Thunderdogs 5 | D7: 19.2 | E7: =ROUNDDOWN(D7,1)-0.5 -> 18.7 | F7: Non-Handicap | G7: 2 | H7: Best of 5 | I7: 12 | AB7: =IF(#REF!="","",BZ8) ->  | AC7: =IF(B16="","",B16) -> New Wave | AJ7: =IF('Approved Div splits'!B16="","",'[1]Race Meeting Information'!$B$3 &" - " & 'Approved Div splits'!B16) -> CAF1031 - New Wave | BZ7: Team 6
B8: Wooftimus Prime | C8: 19.395 | E8: =E5 -> 17.6 | AB8: =IF(#REF!="","",BZ9) ->  | AC8: =IF(B8="","",B8) -> Wooftimus Prime | AJ8: =IF('Approved Div splits'!B8="","",'[1]Race Meeting Information'!$B$3 &" - " & 'Approved Div splits'!B8) -> CAF1031 - Wooftimus Prime | BZ8: Team 7
B9: Star Trackers | C9: 22.085 | E9: =ROUNDDOWN(C9,1)-0.5 -> 21.5 | AB9: =IF(#REF!="","",BZ10) ->  | AC9: =IF(B17="","",B17) -> Zoomies | AJ9: =IF(B17="","",'[1]Race Meeting Information'!$B$3 &" - " & B17) -> CAF1031 - Zoomies | BZ9: Team 8
A10: Div 3 | B10: Norwest Thunderdogs 6 | D10: 22.2 | E10: =ROUNDDOWN(D10,1)-0.5 -> 21.7 | H10: Regular | AB10: =IF(#REF!="","",BZ11) ->  | AC10: =IF(B18="","",B18) -> Flyball Friends | AJ10: =IF('Approved Div splits'!B18="","",'[1]Race Meeting Information'!$B$3 &" - " & 'Approved Div splits'!B18) -> CAF1031 - Flyball Friends | BZ10: Team 9
B11: Havoc Hounds | D11: 24.45 | E11: =ROUNDDOWN(D11,1)-0.5 -> 23.9 | F11: Handicap | G11: 2 | H11: Best of 5 | I11: 12 | AB11: =IF(#REF!="","",BZ12) ->  | AC11: =IF(B9="","",B9) -> Star Trackers | AJ11: =IF('Approved Div splits'!B9="","",'[1]Race Meeting Information'!$B$3 &" - " & 'Approved Div splits'!B9) -> CAF1031 - Star Trackers | BZ11: Team 10
B12: MAD Dash | C12: 24.97 | E12: =ROUNDDOWN(C12,1)-0.5 -> 24.4 | AB12: =IF(#REF!="","",BZ13) ->  | AC12: =IF(B19="","",B19) -> We Opened This | AJ12: =IF('Approved Div splits'!B19="","",'[1]Race Meeting Information'!$B$3 &" - " & 'Approved Div splits'!B19) -> CAF1031 - We Opened This | BZ12: Team 11
B13: Tuggeranong Howling Torpedoes | C13: 26.215 | E13: =ROUNDDOWN(C13,1)-0.5 -> 25.7 | H13: Regular | AB13: =IF(#REF!="","",BZ14) ->  | AC13: =IF(B10="","",B10) -> Norwest Thunderdogs 6 | AJ13: =IF('Approved Div splits'!B10="","",'[1]Race Meeting Information'!$B$3 &" - " & 'Approved Div splits'!B10) -> CAF1031 - Norwest Thunderdogs 6 | BZ13: Team 12
A14: Div 4 | B14: Spud Dogs | C14: 28.624 | E14: =ROUNDDOWN(C14,1)-0.5 -> 28.1 | F14: Handicap | G14: 3 | H14: Best of 5 | I14: 9 | AB14: =IF(#REF!="","",BZ15) ->  | AC14: =IF(B11="","",B11) -> Havoc Hounds | AJ14: =IF('Approved Div splits'!B11="","",'[1]Race Meeting Information'!$B$3 &" - " & 'Approved Div splits'!B11) -> CAF1031 - Havoc Hounds | BZ14: Team 13
B15: Primal Woofers | C15: 29.43 | E15: 28.9 | AB15: =IF(#REF!="","",BZ16) ->  | AC15: =IF(B12="","",B12) -> MAD Dash | AJ15: =IF('Approved Div splits'!B12="","",'[1]Race Meeting Information'!$B$3 &" - " & 'Approved Div splits'!B12) -> CAF1031 - MAD Dash | BZ15: Team 14
B16: New Wave | D16: 19.3 | E16: =ROUNDDOWN(D16,1)-0.5 -> 18.8 | AB16: =IF(#REF!="","",BZ17) ->  | AC16: =IF(B13="","",B13) -> Tuggeranong Howling Torpedoes | AJ16: =IF('Approved Div splits'!B13="","",'[1]Race Meeting Information'!$B$3 &" - " & 'Approved Div splits'!B13) -> CAF1031 - Tuggeranong Howling Torpedoes | BZ16: Team 15
A17: Open | B17: Zoomies | D17: 21.4 | E17: =ROUNDDOWN(D17,1)-0.5 -> 20.9 | H17: Open | I17: 12 | AB17: =IF(#REF!="","",BZ18) ->  | AC17: =IF(B14="","",B14) -> Spud Dogs | AJ17: =IF('Approved Div splits'!B14="","",'[1]Race Meeting Information'!$B$3 &" - " & 'Approved Div splits'!B14) -> CAF1031 - Spud Dogs | BZ17: Team 16
B18: Flyball Friends | D18: 21.5 | E18: 21 | F18: Handicap | G18: 2 | H18: Best of 5 | AB18: =IF(#REF!="","",BZ19) ->  | AC18: =IF(B15="","",B15) -> Primal Woofers | AJ18: =IF('Approved Div splits'!B15="","",'[1]Race Meeting Information'!$B$3 &" - " & 'Approved Div splits'!B15) -> CAF1031 - Primal Woofers | BZ18: Team 18
B19: We Opened This | D19: 22.1 | E19: 21.6 | AB19: =IF(#REF!="","",BZ20) ->  | AC19: =IF(B16="","",B16) -> New Wave | AJ19: =IF('Approved Div splits'!B16="","",'[1]Race Meeting Information'!$B$3 &" - " & 'Approved Div splits'!B16) -> CAF1031 - New Wave | BZ19: Team 19
AB20: =IF(#REF!="","",BZ21) ->  | AC20: =IF(B17="","",B17) -> Zoomies | AJ20: =IF('Approved Div splits'!B17="","",'[1]Race Meeting Information'!$B$3 &" - " & 'Approved Div splits'!B17) -> CAF1031 - Zoomies | BZ20: Team 20
H21: Total Races | I21: =SUM(I3:I19) -> 54 | AB21: =IF(#REF!="","",BZ22) ->  | AC21: =IF(B18="","",B18) -> Flyball Friends | AJ21: =IF('Approved Div splits'!B18="","",'[1]Race Meeting Information'!$B$3 &" - " & 'Approved Div splits'!B18) -> CAF1031 - Flyball Friends | BZ21: Team 21
AB22: =IF(#REF!="","",BZ23) ->  | AC22: =IF(B19="","",B19) -> We Opened This | AJ22: =IF('Approved Div splits'!B19="","",'[1]Race Meeting Information'!$B$3 &" - " & 'Approved Div splits'!B19) -> CAF1031 - We Opened This | BZ22: Team 22
AB23: =IF(#REF!="","",BZ24) ->  | AC23: =IF(B20="","",B20) ->  | AJ23: =IF('Approved Div splits'!B20="","",'[1]Race Meeting Information'!$B$3 &" - " & 'Approved Div splits'!B20) ->  | BZ23: Team 23
AB24: =IF(#REF!="","",BZ25) ->  | AC24: =IF(B21="","",B21) ->  | AJ24: =IF('Approved Div splits'!B21="","",'[1]Race Meeting Information'!$B$3 &" - " & 'Approved Div splits'!B21) ->  | BZ24: Team 24
AB25: =IF(#REF!="","",BZ26) ->  | AC25: =IF(B22="","",B22) ->  | AJ25: =IF('Approved Div splits'!B22="","",'[1]Race Meeting Information'!$B$3 &" - " & 'Approved Div splits'!B22) ->  | BZ25: Team 25
AB26: =IF(#REF!="","",BZ27) ->  | AC26: =IF(B23="","",B23) ->  | AJ26: =IF('Approved Div splits'!B23="","",'[1]Race Meeting Information'!$B$3 &" - " & 'Approved Div splits'!B23) ->  | BZ26: Team 26
AB27: =IF(#REF!="","",BZ28) ->  | AC27: =IF(B28="","",B28) ->  | AJ27: =IF(B28="","",'[1]Race Meeting Information'!$B$3 &" - " & B28) ->  | BZ27: Team 27
AB28: =IF(#REF!="","",BZ29) ->  | AC28: =IF(B29="","",B29) ->  | AJ28: =IF(B29="","",'[1]Race Meeting Information'!$B$3 &" - " & B29) ->  | BZ28: Team 28
AB29: =IF(#REF!="","",BZ30) ->  | AC29: =IF(B30="","",B30) ->  | AJ29: =IF(B30="","",'[1]Race Meeting Information'!$B$3 &" - " & B30) ->  | BZ29: Team 29
AB30: =IF(#REF!="","",BZ31) ->  | AC30: =IF(B31="","",B31) ->  | AJ30: =IF(B31="","",'[1]Race Meeting Information'!$B$3 &" - " & B31) ->  | BZ30: Team 30
AB31: =IF(#REF!="","",BZ32) ->  | AC31: =IF(B32="","",B32) ->  | AJ31: =IF(B32="","",'[1]Race Meeting Information'!$B$3 &" - " & B32) ->  | BZ31: Team 31
AB32: =IF(#REF!="","",BZ33) ->  | AC32: =IF(B33="","",B33) ->  | AJ32: =IF(B33="","",'[1]Race Meeting Information'!$B$3 &" - " & B33) ->  | BZ32: Team 32
AB33: =IF(#REF!="","",BZ34) ->  | AC33: =IF(B34="","",B34) ->  | AJ33: =IF(B34="","",'[1]Race Meeting Information'!$B$3 &" - " & B34) ->  | BZ33: Team 33
AB34: =IF(#REF!="","",BZ35) ->  | AC34: =IF(B35="","",B35) ->  | AJ34: =IF(B35="","",'[1]Race Meeting Information'!$B$3 &" - " & B35) ->  | BZ34: Team 34
AB35: =IF(#REF!="","",BZ36) ->  | AC35: =IF(B36="","",B36) ->  | AJ35: =IF(B36="","",'[1]Race Meeting Information'!$B$3 &" - " & B36) ->  | BZ35: Team 35
AB36: =IF(#REF!="","",BZ37) ->  | AC36: =IF(B37="","",B37) ->  | AJ36: =IF(B37="","",'[1]Race Meeting Information'!$B$3 &" - " & B37) ->  | BZ36: Team 36
AB37: =IF(#REF!="","",BZ38) ->  | AC37: =IF(B38="","",B38) ->  | AJ37: =IF(B38="","",'[1]Race Meeting Information'!$B$3 &" - " & B38) ->  | BZ37: Team 37
AB38: =IF(#REF!="","",BZ39) ->  | AC38: =IF(B39="","",B39) ->  | AJ38: =IF(B39="","",'[1]Race Meeting Information'!$B$3 &" - " & B39) ->  | BZ38: Team 38
AB39: =IF(#REF!="","",BZ40) ->  | AC39: =IF(B40="","",B40) ->  | AJ39: =IF(B40="","",'[1]Race Meeting Information'!$B$3 &" - " & B40) ->  | BZ39: Team 39
AB40: =IF(#REF!="","",BZ41) ->  | AC40: =IF(B41="","",B41) ->  | AJ40: =IF(B41="","",'[1]Race Meeting Information'!$B$3 &" - " & B41) ->  | BZ40: Team 40
AB41: =IF(#REF!="","",BZ42) ->  | AC41: =IF(B42="","",B42) ->  | AJ41: =IF(B42="","",'[1]Race Meeting Information'!$B$3 &" - " & B42) ->  | BZ41: Team 41
AB42: =IF(#REF!="","",BZ43) ->  | AC42: =IF(B43="","",B43) ->  | AJ42: =IF(B43="","",'[1]Race Meeting Information'!$B$3 &" - " & B43) ->  | BZ42: Team 42
AB43: =IF(#REF!="","",BZ44) ->  | AC43: =IF(B44="","",B44) ->  | AJ43: =IF(B44="","",'[1]Race Meeting Information'!$B$3 &" - " & B44) ->  | BZ43: Team 43
AB44: =IF(#REF!="","",BZ45) ->  | AC44: =IF(B45="","",B45) ->  | AJ44: =IF(B45="","",'[1]Race Meeting Information'!$B$3 &" - " & B45) ->  | BZ44: Team 44
AB45: =IF(#REF!="","",BZ46) ->  | AC45: =IF(B46="","",B46) ->  | AJ45: =IF(B46="","",'[1]Race Meeting Information'!$B$3 &" - " & B46) ->  | BZ45: Team 45
AB46: =IF(#REF!="","",BZ47) ->  | AC46: =IF(B47="","",B47) ->  | AJ46: =IF(B47="","",'[1]Race Meeting Information'!$B$3 &" - " & B47) ->  | BZ46: Team 46
AB47: =IF(#REF!="","",BZ48) ->  | AC47: =IF(B48="","",B48) ->  | AJ47: =IF(B48="","",'[1]Race Meeting Information'!$B$3 &" - " & B48) ->  | BZ47: Team 47
AB48: =IF(#REF!="","",BZ49) ->  | AC48: =IF(B49="","",B49) ->  | AJ48: =IF(B49="","",'[1]Race Meeting Information'!$B$3 &" - " & B49) ->  | BZ48: Team 48
AB49: =IF(#REF!="","",BZ50) ->  | AC49: =IF(B50="","",B50) ->  | AJ49: =IF(B50="","",'[1]Race Meeting Information'!$B$3 &" - " & B50) ->  | BZ49: Team 49
AB50: =IF(#REF!="","",BZ51) ->  | AC50: =IF(B51="","",B51) ->  | AJ50: =IF(B51="","",'[1]Race Meeting Information'!$B$3 &" - " & B51) ->  | BZ50: Team 50
AB51: =IF(#REF!="","",BZ52) ->  | AC51: =IF(B52="","",B52) ->  | AJ51: =IF(B52="","",'[1]Race Meeting Information'!$B$3 &" - " & B52) ->  | BZ51: Team 51
AB52: =IF(#REF!="","",BZ53) ->  | AC52: =IF(B53="","",B53) ->  | AJ52: =IF(B53="","",'[1]Race Meeting Information'!$B$3 &" - " & B53) ->  | BZ52: Team 52
AB53: =IF(#REF!="","",BZ54) ->  | AC53: =IF(B54="","",B54) ->  | AJ53: =IF(B54="","",'[1]Race Meeting Information'!$B$3 &" - " & B54) ->  | BZ53: Team 53
AB54: =IF(#REF!="","",BZ55) ->  | AC54: =IF(B55="","",B55) ->  | AJ54: =IF(B55="","",'[1]Race Meeting Information'!$B$3 &" - " & B55) ->  | BZ54: Team 54
AB55: =IF(#REF!="","",BZ56) ->  | AC55: =IF(B56="","",B56) ->  | AJ55: =IF(B56="","",'[1]Race Meeting Information'!$B$3 &" - " & B56) ->  | BZ55: Team 55
AB56: =IF(#REF!="","",BZ57) ->  | AC56: =IF(B57="","",B57) ->  | AJ56: =IF(B57="","",'[1]Race Meeting Information'!$B$3 &" - " & B57) ->  | BZ56: Team 56
AB57: =IF(#REF!="","",BZ58) ->  | AC57: =IF(B58="","",B58) ->  | AJ57: =IF(B58="","",'[1]Race Meeting Information'!$B$3 &" - " & B58) ->  | BZ57: Team 57
AB58: =IF(#REF!="","",BZ59) ->  | AC58: =IF(B59="","",B59) ->  | AJ58: =IF(B59="","",'[1]Race Meeting Information'!$B$3 &" - " & B59) ->  | BZ58: Team 58
AB59: =IF(#REF!="","",BZ60) ->  | AC59: =IF(B60="","",B60) ->  | AJ59: =IF(B60="","",'[1]Race Meeting Information'!$B$3 &" - " & B60) ->  | BZ59: Team 59
AB60: =IF(#REF!="","",BZ61) ->  | AC60: =IF(B61="","",B61) ->  | AJ60: =IF(B61="","",'[1]Race Meeting Information'!$B$3 &" - " & B61) ->  | BZ60: Team 60
AB61: =IF(#REF!="","",BZ62) ->  | AC61: =IF(B62="","",B62) ->  | AJ61: =IF(B62="","",'[1]Race Meeting Information'!$B$3 &" - " & B62) ->  | BZ61: Team 61
AB62: =IF(#REF!="","",BZ63) ->  | AC62: =IF(B63="","",B63) ->  | AJ62: =IF(B63="","",'[1]Race Meeting Information'!$B$3 &" - " & B63) ->  | BZ62: Team 62
AB63: =IF(#REF!="","",BZ64) ->  | AC63: =IF(B64="","",B64) ->  | AJ63: =IF(B64="","",'[1]Race Meeting Information'!$B$3 &" - " & B64) ->  | BZ63: Team 63
AB64: =IF(#REF!="","",BZ65) ->  | AC64: =IF(B65="","",B65) ->  | AJ64: =IF(B65="","",'[1]Race Meeting Information'!$B$3 &" - " & B65) ->  | BZ64: Team 64
AB65: =IF(#REF!="","",BZ66) ->  | AC65: =IF(B66="","",B66) ->  | AJ65: =IF(B66="","",'[1]Race Meeting Information'!$B$3 &" - " & B66) ->  | BZ65: Team 65
AB66: =IF(#REF!="","",BZ67) ->  | AC66: =IF(B67="","",B67) ->  | AJ66: =IF(B67="","",'[1]Race Meeting Information'!$B$3 &" - " & B67) ->  | BZ66: Team 66
AB67: =IF(#REF!="","",BZ68) ->  | AC67: =IF(B68="","",B68) ->  | AJ67: =IF(B68="","",'[1]Race Meeting Information'!$B$3 &" - " & B68) ->  | BZ67: Team 67
AB68: =IF(#REF!="","",BZ69) ->  | AC68: =IF(B69="","",B69) ->  | AJ68: =IF(B69="","",'[1]Race Meeting Information'!$B$3 &" - " & B69) ->  | BZ68: Team 68
AB69: =IF(#REF!="","",BZ70) ->  | AC69: =IF(B70="","",B70) ->  | AJ69: =IF(B70="","",'[1]Race Meeting Information'!$B$3 &" - " & B70) ->  | BZ69: Team 69
AB70: =IF(#REF!="","",BZ71) ->  | AC70: =IF(B71="","",B71) ->  | AJ70: =IF(B71="","",'[1]Race Meeting Information'!$B$3 &" - " & B71) ->  | BZ70: Team 70
AB71: =IF(#REF!="","",BZ72) ->  | AC71: =IF(B72="","",B72) ->  | AJ71: =IF(B72="","",'[1]Race Meeting Information'!$B$3 &" - " & B72) ->  | BZ71: Team 71
AB72: =IF(#REF!="","",BZ73) ->  | AC72: =IF(B73="","",B73) ->  | AJ72: =IF(B73="","",'[1]Race Meeting Information'!$B$3 &" - " & B73) ->  | BZ72: Team 72
AB73: =IF(#REF!="","",BZ74) ->  | AC73: =IF(B74="","",B74) ->  | AJ73: =IF(B74="","",'[1]Race Meeting Information'!$B$3 &" - " & B74) ->  | BZ73: Team 73
AB74: =IF(#REF!="","",BZ75) ->  | AC74: =IF(B75="","",B75) ->  | AJ74: =IF(B75="","",'[1]Race Meeting Information'!$B$3 &" - " & B75) ->  | BZ74: Team 74
AB75: =IF(#REF!="","",BZ76) ->  | AC75: =IF(B76="","",B76) ->  | AJ75: =IF(B76="","",'[1]Race Meeting Information'!$B$3 &" - " & B76) ->  | BZ75: Team 75
AB76: =IF(#REF!="","",BZ77) ->  | AC76: =IF(B77="","",B77) ->  | AJ76: =IF(B77="","",'[1]Race Meeting Information'!$B$3 &" - " & B77) ->  | BZ76: Team 76
AB77: =IF(#REF!="","",BZ78) ->  | AC77: =IF(B78="","",B78) ->  | AJ77: =IF(B78="","",'[1]Race Meeting Information'!$B$3 &" - " & B78) ->  | BZ77: Team 77
AB78: =IF(#REF!="","",BZ79) ->  | AC78: =IF(B79="","",B79) ->  | AJ78: =IF(B79="","",'[1]Race Meeting Information'!$B$3 &" - " & B79) ->  | BZ78: Team 78
AB79: =IF(#REF!="","",BZ80) ->  | AC79: =IF(B80="","",B80) ->  | AJ79: =IF(B80="","",'[1]Race Meeting Information'!$B$3 &" - " & B80) ->  | BZ79: Team 79
AB80: =IF(#REF!="","",BZ81) ->  | AC80: =IF(B81="","",B81) ->  | AJ80: =IF(B81="","",'[1]Race Meeting Information'!$B$3 &" - " & B81) ->  | BZ80: Team 80
AB81: =IF(#REF!="","",BZ82) ->  | AC81: =IF(B82="","",B82) ->  | AJ81: =IF(B82="","",'[1]Race Meeting Information'!$B$3 &" - " & B82) ->  | BZ81: Team 81
AB82: =IF(#REF!="","",BZ83) ->  | AC82: =IF(B83="","",B83) ->  | AJ82: =IF(B83="","",'[1]Race Meeting Information'!$B$3 &" - " & B83) ->  | BZ82: Team 82
AB83: =IF(#REF!="","",BZ84) ->  | AC83: =IF(B84="","",B84) ->  | AJ83: =IF(B84="","",'[1]Race Meeting Information'!$B$3 &" - " & B84) ->  | BZ83: Team 83
AB84: =IF(#REF!="","",BZ85) ->  | AC84: =IF(B85="","",B85) ->  | AJ84: =IF(B85="","",'[1]Race Meeting Information'!$B$3 &" - " & B85) ->  | BZ84: Team 84
AB85: =IF(#REF!="","",BZ86) ->  | AC85: =IF(B86="","",B86) ->  | AJ85: =IF(B86="","",'[1]Race Meeting Information'!$B$3 &" - " & B86) ->  | BZ85: Team 85
AB86: =IF(#REF!="","",BZ87) ->  | AC86: =IF(B87="","",B87) ->  | AJ86: =IF(B87="","",'[1]Race Meeting Information'!$B$3 &" - " & B87) ->  | BZ86: Team 86
AB87: =IF(#REF!="","",BZ88) ->  | AC87: =IF(B88="","",B88) ->  | AJ87: =IF(B88="","",'[1]Race Meeting Information'!$B$3 &" - " & B88) ->  | BZ87: Team 87
AB88: =IF(#REF!="","",BZ89) ->  | AC88: =IF(B89="","",B89) ->  | AJ88: =IF(B89="","",'[1]Race Meeting Information'!$B$3 &" - " & B89) ->  | BZ88: Team 88
AB89: =IF(#REF!="","",BZ90) ->  | AC89: =IF(B90="","",B90) ->  | AJ89: =IF(B90="","",'[1]Race Meeting Information'!$B$3 &" - " & B90) ->  | BZ89: Team 89
AB90: =IF(#REF!="","",BZ91) ->  | AC90: =IF(B91="","",B91) ->  | AJ90: =IF(B91="","",'[1]Race Meeting Information'!$B$3 &" - " & B91) ->  | BZ90: Team 90
AB91: =IF(#REF!="","",BZ92) ->  | AC91: =IF(B92="","",B92) ->  | AJ91: =IF(B92="","",'[1]Race Meeting Information'!$B$3 &" - " & B92) ->  | BZ91: Team 91
AB92: =IF(#REF!="","",BZ93) ->  | AJ92: =IF(B93="","",'[1]Race Meeting Information'!$B$3 &" - " & B93) ->  | BZ92: Team 92
AB93: =IF(#REF!="","",BZ94) ->  | AJ93: =IF(B94="","",'[1]Race Meeting Information'!$B$3 &" - " & B94) ->  | BZ93: Team 93
AB94: =IF(#REF!="","",BZ95) ->  | AJ94: =IF(B95="","",'[1]Race Meeting Information'!$B$3 &" - " & B95) ->  | BZ94: Team 94
AB95: =IF(#REF!="","",BZ96) ->  | AJ95: =IF(B96="","",'[1]Race Meeting Information'!$B$3 &" - " & B96) ->  | BZ95: Team 95
AB96: =IF(#REF!="","",BZ97) ->  | AJ96: =IF(B97="","",'[1]Race Meeting Information'!$B$3 &" - " & B97) ->  | BZ96: Team 96
AB97: =IF(#REF!="","",BZ98) ->  | AJ97: =IF(B98="","",'[1]Race Meeting Information'!$B$3 &" - " & B98) ->  | BZ97: Team 97
AB98: =IF(#REF!="","",BZ99) ->  | AJ98: =IF(B99="","",'[1]Race Meeting Information'!$B$3 &" - " & B99) ->  | BZ98: Team 98
AB99: =IF(#REF!="","",BZ100) ->  | AJ99: =IF(B100="","",'[1]Race Meeting Information'!$B$3 &" - " & B100) ->  | BZ99: Team 99
AB100: =IF(#REF!="","",BZ101) ->  | AJ100: =IF(B101="","",'[1]Race Meeting Information'!$B$3 &" - " & B101) ->  | BZ100: Team 100
AB101: =IF(#REF!="","",BZ101) ->  | BZ101: Team 101
